bitfinex/quotes_ETHUSD_20240731
["timestamp","ask_amount","ask_price","bid_price","bid_amount"]
[1722441382539,2.20492789,3315.3,3314.9,0.301677]
[1722441383116,3.01641,3315.2,3314.9,0.301677]
[1722441383329,2.20492789,3315.2,3314.7,0.0603301]
[1722441383657,5.62074107,3315.5,3314.8,3.01672]
[1722441383658,5.22125789,3315.3,3314.8,3.01672]
[1722441383843,5.22125789,3315.3,3314.8,3.08586123]
[1722441383997,2.20492789,3315.2,3314.8,3.08586123]
[1722441384198,5.22125789,3315.3,3314.8,3.08586123]
[1722441384443,5.22125789,3315.3,3314.9,0.31461913]
[1722441384796,2.20492789,3315.2,3314.9,0.31461913]
[1722441385034,2.20492789,3315.2,3315.0,0.06899791]
[1722441385035,3.0165,3315.1,3315.0,0.06899791]
[1722441385343,3.0165,3315.1,3314.6,5.35902]
[1722441385499,2.20492789,3315.2,3315.0,0.06899791]
[1722441385836,2.20492789,3315.2,3315.1,0.06896994]
[1722441386017,2.20492789,3315.2,3314.6,5.35902]
[1722441386018,5.21960909,3315.2,3314.6,5.35902]
[1722441386335,2.20318909,3315.3,3314.8,3.01676]
[1722441386534,2.20318909,3315.3,3315.0,3.01653]
[1722441386751,2.20318909,3315.5,3315.0,3.01653]
[1722441386901,2.20318909,3315.5,3315.2,3.01634]
[1722441387241,7.70628909,3315.6,3315.3,3.08519893]
[1722441387455,2.20318909,3315.6,3315.3,3.08519893]
[1722441387868,2.20318909,3315.6,3315.3,0.06889893]
[1722441388016,2.20318909,3315.6,3315.2,3.01634]
[1722441388213,2.20318909,3315.7,3315.3,0.529764]
[1722441388407,2.20318909,3315.6,3315.4,0.06887095]
[1722441388660,2.20318909,3315.6,3315.2,3.01634]
[1722441388849,5.21923909,3315.6,3315.5,0.06884298]
[1722441389157,2.33432041,3315.6,3315.1,2.2813]
[1722441389314,3.01581,3315.9,3315.5,0.06884298]
[1722441389517,2.2026249,3315.7,3315.1,2.2813]
[1722441389718,2.20240386,3315.7,3315.6,0.06871865]
[1722441389994,0.1311119,3315.8,3315.3,0.06032503]
[1722441390177,0.1311119,3315.8,3315.7,5.44475]
[1722441390469,0.1311119,3315.8,3315.7,5.51335033]
[1722441390762,2.20240149,3316.1,3315.7,5.51335033]
[1722441390965,2.20240149,3316.2,3315.8,3.01583]
[1722441391272,3.01542,3316.3,3315.9,0.0685444]
[1722441391273,5.21800149,3316.1,3315.9,0.0685444]
[1722441391430,3.01568,3316.0,3315.5,3.01605]
[1722441391636,3.01583,3315.9,3315.5,0.844645]
[1722441391835,2.4192,3316.6,3315.0,2.4141]
[1722441391836,3.01594,3315.8,3315.0,2.4141]
[1722441392167,3.01594,3315.8,3315.1,3.01648]
[1722441392168,3.01606,3315.6,3315.1,3.01648]
[1722441392335,3.01606,3315.6,3315.0,2.4141]
[1722441392528,5.21846149,3315.6,3315.0,2.4141]
[1722441392944,3.01589,3315.8,3315.2,3.0164]
[1722441392945,2.20240149,3315.7,3315.2,3.0164]
[1722441393236,5.21829149,3315.8,3315.2,3.0164]
[1722441394051,5.21829149,3315.8,3315.1,3.01649]
[1722441394052,5.21829149,3315.8,3315.3,3.01631]
[1722441394255,2.20240149,3315.9,3315.5,3.01608]
[1722441394453,2.20240149,3315.9,3315.6,3.01597]
[1722441394655,2.20240149,3316.0,3315.6,3.01597]
[1722441395183,3.0,3316.2,3315.6,3.01597]
[1722441395184,2.20240149,3316.1,3315.6,3.01597]
[1722441395886,2.20348047,3316.0,3315.6,3.01597]
[1722441396074,2.20348047,3316.1,3315.6,3.01597]
[1722441396457,2.20348047,3316.0,3315.6,3.01597]
[1722441396854,2.20348047,3316.0,3315.7,3.01594]
[1722441397055,2.20348047,3316.2,3315.9,3.01577]
[1722441397387,1.90108047,3316.2,3315.9,3.01577]
[1722441398064,1.90108047,3316.2,3315.7,6.03175]
[1722441398254,3.01541,3316.3,3315.7,3.01586]
[1722441398255,1.90108047,3316.1,3315.7,3.01586]
[1722441398469,4.91672047,3316.1,3315.6,3.619245]
[1722441398692,3.01564,3316.1,3315.6,3.01604]
[1722441398857,3.0157,3316.0,3315.5,3.01613]
[1722441399449,3.0157,3316.0,3315.3,3.01626]
[1722441399450,3.0157,3316.0,3315.4,3.01622]
[1722441400586,2.60582067,3316.2,3315.1,3.01649]
[1722441400751,3.0161,3315.6,3314.9,5.7535]
[1722441400950,3.0161,3315.6,3315.1,3.01649]
[1722441401173,3.01614,3315.5,3315.0,3.01659]
[1722441401562,3.01635,3315.3,3314.9,0.4]
[1722441402100,3.01621,3315.5,3314.9,0.4]
[1722441402247,6.0322,3315.6,3315.0,3.01657]
[1722441402457,6.0322,3315.6,3314.9,0.4]
[1722441402458,5.22362563,3315.4,3314.9,0.4]
[1722441402864,2.20738563,3315.3,3314.9,0.4]
[1722441403090,5.22375563,3315.3,3314.9,0.4]
[1722441403293,2.20738563,3315.2,3314.9,0.4]
[1722441404097,2.20738563,3315.3,3314.9,0.4]
[1722441404395,2.20738563,3315.2,3314.9,3.41667]
[1722441404594,2.20738563,3315.2,3314.9,4.060008]
[1722441404795,2.20738563,3315.3,3315.0,3.01658]
[1722441405188,2.20738563,3315.3,3314.9,0.4]
[1722441405189,2.20738563,3315.3,3315.1,3.01646]
[1722441405363,5.4891,3315.7,3314.9,3.4166]
[1722441405364,2.20738563,3315.4,3314.9,3.4166]
[1722441405567,2.20913957,3315.3,3314.9,3.4166]
[1722441406374,2.20913957,3315.3,3315.0,3.01658]
[1722441406762,2.20913957,3315.3,3315.1,0.0617536]
[1722441407199,5.4891,3315.7,3315.1,0.0617536]
[1722441407200,2.20913957,3315.2,3315.1,0.0617536]
[1722441407505,2.20913957,3315.2,3314.9,0.4]
[1722441407506,2.20913957,3315.3,3315.2,3.0164]
[1722441407708,3.01591,3315.8,3315.3,3.01631]
[1722441407709,2.20913957,3315.5,3315.3,3.01631]
[1722441407875,2.20913957,3315.5,3315.2,0.66501962]
[1722441408080,2.20913957,3315.5,3315.4,0.06166967]
[1722441408377,5.62551612,3315.7,3315.2,0.603294]
[1722441408573,5.62551612,3315.7,3314.9,3.41665]
[1722441408574,3.01613,3315.5,3315.4,0.06166967]
[1722441408912,2.61010549,3315.5,3315.0,3.01658]
[1722441409213,2.20968174,3315.3,3315.0,3.01658]
[1722441409360,2.20968174,3315.3,3314.9,3.41661]
[1722441409361,2.20968174,3315.3,3315.1,3.01644]
[1722441410424,2.20968174,3315.3,3315.0,3.0165]
[1722441410688,2.20968174,3315.3,3315.1,3.3581]
[1722441411252,3.01596,3315.7,3315.2,3.0164]
[1722441411253,2.20968174,3315.4,3315.2,3.0164]
[1722441411821,2.20968174,3315.4,3315.2,3.01635]
[1722441412001,3.01596,3315.7,3315.2,3.01635]
[1722441412335,1.90664499,3315.4,3315.2,3.01635]
[1722441412533,1.90664499,3315.3,3315.2,3.619638]
[1722441412922,3.01605,3315.6,3315.2,0.603288]
[1722441413118,3.01626,3315.4,3314.9,3.41667]
[1722441415731,3.01626,3315.4,3314.9,0.4]
[1722441415918,3.01645,3315.2,3314.9,0.4]
[1722441416313,3.01659,3315.0,3314.9,0.4]
[1722441417552,6.03318,3315.0,3314.9,0.4]
[1722441417870,9.36544144,3315.0,3314.9,0.4]
[1722441418276,12.48956528,3315.0,3314.9,0.4]
[1722441418570,15.50615528,3315.0,3314.9,0.4]
[1722441418796,15.38203144,3315.0,3314.9,0.4]
[1722441420633,3.01723,3314.3,3313.7,6.0354]
[1722441420828,5.22298971,3314.3,3313.8,0.60354]
[1722441421132,5.22298971,3314.3,3313.8,0.05851728]
[1722441421338,5.22298971,3314.3,3313.4,5.27063]
[1722441421339,2.4802,3314.2,3313.4,5.27063]
[1722441421655,2.4802,3314.2,3312.6,10.29871]
[1722441421656,4.68595971,3314.2,3313.0,2.2557]
[1722441421867,3.0176,3313.9,3313.3,3.01809]
[1722441422081,5.22263128,3314.1,3313.4,3.01804]
[1722441422368,3.01756,3314.0,3313.4,3.07507622]
[1722441422680,3.01756,3314.0,3313.4,3.69043847]
[1722441423177,3.0176,3313.9,3313.4,3.69043847]
[1722441423967,6.03526,3313.9,3313.4,0.67239847]
[1722441424336,3.0176,3313.9,3313.4,0.67239847]
[1722441425435,3.0176,3313.9,3313.4,3.69043847]
[1722441425672,3.0176,3313.9,3313.4,3.07507622]
[1722441426236,3.01774,3313.8,3313.4,0.05703622]
[1722441426484,3.01774,3313.8,3313.2,3.01815]
[1722441426648,3.01774,3313.8,3313.5,0.05700822]
[1722441426980,3.01774,3313.8,3313.2,3.01815]
[1722441427184,3.01774,3313.8,3313.6,0.05698021]
[1722441427477,2.71534,3313.8,3313.2,3.01815]
[1722441427632,2.71534,3313.8,3313.7,0.05695221]
[1722441428180,3.01761,3313.9,3313.7,0.05695221]
[1722441428343,3.01761,3313.9,3313.4,3.01804]
[1722441428547,3.01761,3313.9,3313.8,0.05692421]
[1722441428767,3.01761,3313.9,3313.4,3.01804]
[1722441429173,3.01761,3313.9,3313.5,0.05700822]
[1722441430387,3.01769,3313.8,3313.5,0.05700822]
[1722441430735,3.01769,3313.8,3313.2,6.03633]
[1722441431084,3.01769,3313.8,3313.3,3.36096498]
[1722441431467,3.01761,3313.9,3313.3,3.41819497]
[1722441432054,4.68036307,3314.2,3313.3,3.41819497]
[1722441432055,2.4802,3314.2,3313.3,3.41819497]
[1722441432278,5.4802,3314.2,3313.3,3.07535999]
[1722441432441,5.4802,3314.2,3313.3,3.01813]
[1722441432642,3.01768,3313.9,3313.3,3.01813]
[1722441432842,3.01768,3313.9,3313.4,0.05677944]
[1722441433452,3.01766,3313.9,3313.4,0.05677944]
[1722441433673,3.01774,3313.8,3313.2,3.01815]
[1722441433883,3.01774,3313.8,3313.5,0.05675144]
[1722441434085,3.01774,3313.8,3313.2,3.869931]
[1722441434251,3.01774,3313.8,3313.6,0.05672343]
[1722441434449,3.01774,3313.8,3313.2,3.869931]
[1722441434791,3.01774,3313.8,3313.7,0.05669543]
[1722441435291,3.01774,3313.8,3313.2,3.01815]
[1722441435617,6.03547,3313.8,3313.7,0.05669543]
[1722441435900,3.01777,3313.7,3313.2,3.01822]
[1722441436421,3.01805,3313.4,3312.9,3.01844]
[1722441436586,3.01805,3313.4,3312.9,3.622135]
[1722441436891,3.01805,3313.4,3313.0,0.05662865]
[1722441437252,5.46884,3313.6,3313.0,0.05662865]
[1722441437788,3.01805,3313.4,3313.0,0.05662865]
[1722441438594,3.01805,3313.4,3312.6,7.28]
[1722441438595,3.01827,3313.2,3312.6,10.29876]
[1722441439074,6.03657,3313.2,3312.7,0.05681821]
[1722441439287,3.01847,3313.0,3312.7,0.05681821]
[1722441439596,3.01853,3312.9,3312.4,2.3851]
[1722441439761,3.01853,3312.9,3312.8,0.0567902]
[1722441439951,3.01853,3312.9,3312.4,2.3851]
[1722441440171,3.01853,3312.9,3312.8,0.05636151]
[1722441440372,3.01853,3312.9,3312.4,2.3851]
[1722441440608,3.01853,3312.9,3312.8,0.05644594]
[1722441441131,2.4115,3312.8,3311.4,2.4265]
[1722441441450,3.01965,3311.7,3310.9,2.4265]
[1722441441616,3.01962,3311.7,3310.9,5.44682]
[1722441441924,3.01973,3311.6,3310.9,5.44682]
[1722441442126,3.01973,3311.6,3311.0,0.544682]
[1722441442275,6.03926,3311.7,3311.0,3.564912]
[1722441442622,3.01969,3311.6,3311.0,3.564912]
[1722441442991,2.4115,3312.2,3311.1,0.06039987]
[1722441443182,3.01949,3311.9,3311.0,3.0202]
[1722441443519,3.01949,3311.9,3311.3,3.01993]
[1722441443724,6.03855,3312.1,3311.4,3.01986]
[1722441443927,3.01925,3312.1,3311.4,3.01986]
[1722441444096,3.01933,3312.0,3311.4,3.01986]
[1722441444691,5.43064,3312.2,3311.2,3.02001]
[1722441445018,5.43064,3312.2,3311.2,3.376438]
[1722441445019,3.01956,3311.8,3311.2,3.376438]
[1722441445232,3.01937,3312.0,3311.4,3.01981]
[1722441445425,3.01937,3312.0,3311.2,3.376438]
[1722441445426,3.0,3312.5,3311.9,3.01941]
[1722441445622,3.0187,3312.7,3311.9,3.01941]
[1722441445791,0.4521957,3313.0,3312.3,3.01904]
[1722441445792,3.4706357,3313.0,3312.3,3.01904]
[1722441445995,3.4706357,3313.0,3312.1,3.0192]
[1722441445996,0.4521957,3313.0,3312.1,3.0192]
[1722441446180,3.01883,3312.6,3312.0,3.0193]
[1722441446379,3.01883,3312.6,3311.7,2.4253]
[1722441446380,3.01892,3312.5,3311.8,3.0195]
[1722441446687,3.01892,3312.5,3311.9,3.0194]
[1722441446905,3.01889,3312.5,3312.0,3.0193]
[1722441447112,3.01901,3312.4,3311.8,3.0195]
[1722441447522,3.01906,3312.3,3311.8,3.0195]
[1722441447696,3.01906,3312.3,3311.7,2.4253]
[1722441448034,3.01914,3312.2,3311.7,5.44489]
[1722441448228,3.01914,3312.2,3311.7,5.989379]
[1722441448780,3.01901,3312.4,3311.7,5.989379]
[1722441449025,3.01901,3312.4,3311.8,3.01944]
[1722441449026,3.01897,3312.4,3311.8,3.01944]
[1722441449229,3.01874,3312.7,3312.1,3.01918]
[1722441449525,3.4706757,3313.0,3311.1,0.54467]
[1722441449526,3.01938,3312.0,3311.1,0.54467]
[1722441449730,3.01941,3311.9,3311.3,3.01995]
[1722441450380,3.01947,3311.9,3311.3,3.01995]
[1722441450528,6.03897,3311.9,3311.3,3.01995]
[1722441450734,3.01951,3311.8,3311.3,3.01995]
[1722441450936,3.01961,3311.7,3311.2,0.354467]
[1722441451142,3.01975,3311.6,3311.2,0.354467]
[1722441451367,3.01975,3311.6,3311.0,3.02021]
[1722441451535,3.01975,3311.6,3311.1,3.02014]
[1722441451747,3.01956,3311.8,3311.2,3.02003]
[1722441451938,3.01956,3311.8,3311.2,3.06921598]
[1722441452628,3.01948,3311.9,3311.3,3.01993]
[1722441452925,3.01948,3311.9,3311.4,0.0491299]
[1722441453126,3.01948,3311.9,3311.3,3.01993]
[1722441453371,3.01948,3311.9,3311.5,0.04910186]
[1722441453664,3.01948,3311.9,3311.4,0.0491299]
[1722441453825,3.01948,3311.9,3311.6,0.04907383]
[1722441454024,6.03897,3311.9,3311.5,0.04910186]
[1722441454329,3.0195,3311.8,3311.6,0.04907383]
[1722441454526,3.0195,3311.8,3311.3,3.01993]
[1722441454727,3.0195,3311.8,3311.7,0.04904579]
[1722441454960,3.0195,3311.8,3311.3,3.01993]
[1722441455162,3.0195,3311.8,3311.7,0.04904579]
[1722441455372,3.0195,3311.8,3311.3,3.01993]
[1722441455669,3.05263817,3312.5,3306.0,64.43614111]
[1722441455670,2.4005,3311.7,3309.3,0.3022]
[1722441455887,2.4005,3311.7,3309.2,5.51435]
[1722441455888,2.4005,3311.7,3309.2,3.02184]
[1722441456091,2.4005,3311.7,3310.1,3.02098]
[1722441456092,3.02033,3310.9,3310.1,3.02098]
[1722441456227,3.02033,3310.9,3310.1,3.625197]
[1722441456428,3.02048,3310.8,3310.1,3.625197]
[1722441456665,3.02053,3310.7,3310.1,3.625197]
[1722441456851,3.02061,3310.6,3310.1,0.604217]
[1722441457257,3.02072,3310.5,3309.9,3.02118]
[1722441457454,2.71832,3310.5,3309.9,3.02118]
[1722441457654,3.02061,3310.6,3310.0,3.02113]
[1722441458544,3.02061,3310.6,3309.8,3.02132]
[1722441458545,3.02069,3310.5,3309.9,3.02122]
[1722441458883,3.02085,3310.4,3309.7,5.28237]
[1722441459033,3.02085,3310.4,3309.7,6.112765]
[1722441459372,3.02085,3310.4,3309.6,3.02145]
[1722441459559,3.02092,3310.3,3309.6,3.02145]
[1722441459762,3.02092,3310.3,3309.1,2.4564]
[1722441459763,3.02055,3310.7,3309.9,3.02117]
[1722441459943,3.02069,3310.5,3309.9,6.04232]
[1722441460126,3.02069,3310.5,3309.9,3.02115]
[1722441460339,3.02069,3310.5,3309.7,3.02134]
[1722441460967,3.02069,3310.5,3309.9,3.02121]
[1722441461760,3.02069,3310.5,3310.0,0.04019763]
[1722441462077,3.62481,3310.5,3310.0,0.04019763]
[1722441462256,3.02086,3310.4,3309.7,3.02134]
[1722441462456,3.02086,3310.4,3309.8,0.03982472]
[1722441462664,3.02086,3310.4,3309.7,3.02134]
[1722441462866,3.02086,3310.4,3309.8,3.06115472]
[1722441463389,3.02075,3310.5,3309.9,3.02123]
[1722441463589,6.04112,3310.7,3309.9,3.02123]
[1722441463905,3.02105,3310.1,3310.0,0.03976859]
[1722441464109,6.0421,3310.1,3310.0,0.03976859]
[1722441464315,3.02147,3309.7,3309.0,3.02202]
[1722441464450,3.02157,3309.6,3308.9,5.29954]
[1722441464654,3.02157,3309.6,3308.9,2.2774]
[1722441464887,2.618857,3309.5,3308.3,0.06044782]
[1722441465051,2.618857,3309.5,3308.7,3.02233]
[1722441465052,5.640457,3309.5,3308.7,3.02233]
[1722441465408,5.640457,3309.5,3308.2,3.02278]
[1722441465409,3.02215,3308.9,3308.2,3.02278]
[1722441465547,3.02188,3309.2,3308.5,3.02246]
[1722441465886,3.02197,3309.1,3308.4,3.0226]
[1722441466052,3.02182,3309.3,3308.5,3.02244]
[1722441466248,5.2745,3310.2,3309.0,3.02204]
[1722441466462,5.2745,3310.2,3308.6,0.06045035]
[1722441466463,2.2745,3310.2,3308.6,3.08284035]
[1722441466647,2.2745,3310.2,3309.2,3.02179]
[1722441466875,5.2955,3310.2,3309.3,3.02178]
[1722441467045,2.2745,3310.2,3309.6,3.0215]
[1722441467254,0.529538,3310.1,3309.6,3.0215]
[1722441467447,3.02069,3310.5,3309.7,0.04024988]
[1722441467791,0.06692601,3309.4,3309.2,3.0218]
[1722441467992,0.06692601,3309.4,3309.3,3.02172]
[1722441468298,0.06692601,3309.4,3309.3,3.02178]
[1722441468604,0.4521957,3310.6,3309.2,2.678]
[1722441468891,0.06692601,3309.4,3309.3,6.31136]
[1722441469095,0.06692601,3309.4,3309.3,6.04356]
[1722441471008,0.06692601,3309.4,3309.3,9.06534]
[1722441471309,0.06692601,3309.4,3309.3,6.04356]
[1722441471525,0.06692601,3309.4,3309.3,9.06534]
[1722441472271,5.26722601,3310.5,3309.9,3.02116]
[1722441472474,0.72354527,3310.6,3309.9,3.02116]
[1722441472475,0.59907713,3310.4,3309.9,3.02116]
[1722441472690,0.72354527,3310.6,3309.9,3.02116]
[1722441472885,3.74415527,3310.6,3309.9,3.02116]
[1722441473180,3.02071,3310.5,3309.8,3.02132]
[1722441473386,3.74415527,3310.6,3310.0,0.04016568]
[1722441473622,3.74415527,3310.6,3309.8,3.02132]
[1722441473623,0.97646753,3310.5,3309.8,3.02132]
[1722441473768,0.97646753,3310.5,3309.9,3.02123]
[1722441473971,0.97646753,3310.5,3309.9,3.06142374]
[1722441474170,0.97646753,3310.5,3310.0,3.02109]
[1722441474481,0.97646753,3310.5,3310.0,0.04016568]
[1722441474683,0.72354527,3310.6,3309.9,3.02116]
[1722441474884,0.72354527,3310.6,3310.0,3.02114]
[1722441475310,0.72354527,3310.6,3310.1,0.04013762]
[1722441475626,0.72354527,3310.6,3310.3,3.02082]
[1722441475794,5.26722601,3310.8,3310.5,3.02069]
[1722441476000,5.26722601,3310.8,3310.6,3.02054]
[1722441476199,10.59198601,3311.3,3310.6,3.06053733]
[1722441476516,1.0591986,3311.2,3310.6,0.03999733]
[1722441476824,1.0591986,3311.2,3310.0,2.73841646]
[1722441476825,5.26722601,3311.3,3310.7,3.02042]
[1722441477031,5.26722601,3311.3,3310.8,3.02035]
[1722441477182,5.26722601,3311.3,3310.8,3.0599564]
[1722441477537,5.26722601,3311.3,3310.8,0.0396064]
[1722441477846,5.26722601,3311.3,3310.6,0.33305101]
[1722441477847,3.02018,3311.1,3310.6,0.33305101]
[1722441478009,0.302018,3311.0,3310.6,0.33305101]
[1722441478202,3.02042,3310.8,3310.7,0.03963445]
[1722441478420,3.0,3311.2,3310.6,0.33305101]
[1722441478421,6.041,3310.7,3310.6,0.33305101]
[1722441478639,8.4854,3310.7,3310.6,0.33305101]
[1722441478945,11.4854,3310.7,3310.6,0.33305101]
[1722441480645,14.5059,3310.7,3310.6,0.33305101]
[1722441480797,16.00170957,3310.7,3310.6,0.33305101]
[1722441481001,16.55170957,3310.7,3310.6,0.33305101]
[1722441481294,12.98120957,3310.7,3310.6,0.33305101]
[1722441481727,9.96070957,3310.7,3310.6,0.33305101]
[1722441482296,6.94020957,3310.7,3310.6,0.33305101]
[1722441482531,4.49580957,3310.7,3310.6,0.33305101]
[1722441482743,3.92620818,3310.8,3310.6,0.37228445]
[1722441482930,3.0205,3310.7,3310.6,0.37228445]
[1722441483114,6.0205,3310.7,3310.6,0.37228445]
[1722441483347,6.0205,3310.7,3310.6,0.33305101]
[1722441483512,6.0205,3310.7,3310.6,0.37228445]
[1722441483845,7.01722082,3310.7,3310.6,0.37228445]
[1722441484339,3.99672082,3310.7,3310.6,0.37228445]
[1722441485104,0.92620818,3310.8,3310.6,0.37228445]
[1722441485711,0.4521957,3310.8,3310.6,0.37228445]
[1722441486351,3.4726157,3310.8,3310.6,0.37228445]
[1722441486685,0.4521957,3310.8,3310.6,0.37228445]
[1722441487433,3.0205,3310.7,3310.6,0.37228445]
[1722441487632,9.35798957,3310.7,3310.6,0.37228445]
[1722441487834,9.35798957,3310.7,3310.6,0.33305101]
[1722441488021,11.64728957,3310.7,3310.6,0.33305101]
[1722441488554,14.66778957,3310.7,3310.6,0.33305101]
[1722441490045,11.64728957,3310.7,3310.6,0.33305101]
[1722441491000,11.64728957,3310.7,3310.1,0.4]
[1722441491001,8.62678957,3310.7,3310.1,0.4]
[1722441491246,3.0,3310.7,3310.2,3.02096]
[1722441491445,3.1493957,3310.8,3310.3,3.02086]
[1722441491606,0.1493957,3310.8,3310.2,0.03797244]
[1722441491806,0.1493957,3310.8,3310.4,3.05895561]
[1722441492049,0.1493957,3310.8,3310.4,3.02078]
[1722441492359,0.1493957,3310.8,3310.6,3.02058]
[1722441492502,0.1493957,3310.8,3310.7,0.03804924]
[1722441492907,0.1493957,3310.8,3310.7,0.03804622]
[1722441493357,0.1493957,3310.8,3310.4,3.32660415]
[1722441493505,0.1493957,3310.8,3310.7,0.03795576]
[1722441493909,0.1493957,3310.8,3310.3,3.02085]
[1722441494272,3.1698557,3310.8,3310.4,0.03803993]
[1722441494425,3.02051,3310.7,3310.4,0.03803993]
[1722441494630,3.02051,3310.7,3310.1,0.4]
[1722441494631,3.02069,3310.5,3310.1,0.4]
[1722441494862,3.0206,3310.6,3310.5,0.03801187]
[1722441495172,3.0206,3310.6,3310.5,0.03798775]
[1722441495482,3.02069,3310.5,3310.1,0.4]
[1722441495681,0.1493957,3310.8,3310.1,0.4]
[1722441495861,3.02083,3310.4,3310.1,0.4]
[1722441496073,3.02089,3310.3,3310.1,0.4]
[1722441496246,7.66588342,3310.7,3310.1,0.4]
[1722441496575,3.0,3310.6,3310.1,0.4]
[1722441496871,6.0206,3310.6,3310.2,0.03807192]
[1722441498062,6.0206,3310.6,3310.1,0.4]
[1722441498425,3.02083,3310.4,3310.2,0.03813526]
[1722441498725,3.02083,3310.4,3310.1,0.4]
[1722441499073,9.36179606,3310.6,3310.2,0.03826792]
[1722441499368,2.20304566,3310.4,3310.2,0.03826792]
[1722441499571,2.33421913,3310.5,3310.2,0.03826792]
[1722441499780,5.35495913,3310.5,3310.2,0.03826792]
[1722441499924,3.02078,3310.4,3310.2,0.03826792]
[1722441500130,5.2239005,3310.4,3310.2,0.03826792]
[1722441500322,2.33421173,3310.3,3310.2,0.03826792]
[1722441500520,0.13109123,3310.3,3310.2,0.03826792]
[1722441501023,5.22494271,3310.3,3310.2,0.03826792]
[1722441501225,3.15197142,3310.3,3310.2,0.03826792]
[1722441501572,3.02096,3310.2,3310.1,0.4]
[1722441501745,0.13110142,3310.2,3310.1,0.43829598]
[1722441502070,2.20521835,3310.2,3310.1,0.43829598]
[1722441502258,0.13110142,3310.2,3310.1,0.43829598]
[1722441502454,3.0209,3310.3,3310.1,0.43829598]
[1722441502455,2.84920142,3310.3,3310.1,0.43829598]
[1722441502766,0.13110315,3310.2,3310.1,0.43829598]
[1722441502971,2.60504507,3310.4,3310.1,0.43829598]
[1722441503274,2.20540606,3310.2,3310.1,0.43829598]
[1722441503472,2.60504507,3310.4,3310.1,0.43829598]
[1722441503631,2.20545607,3310.2,3310.1,0.43829598]
[1722441504177,2.20545607,3310.3,3310.1,0.43829598]
[1722441504470,2.20545607,3310.2,3310.1,0.43829598]
[1722441504678,5.62573507,3310.5,3310.1,0.43829598]
[1722441504679,2.20545607,3310.3,3310.1,0.43829598]
[1722441505336,2.20545607,3310.2,3310.1,0.43829598]
[1722441506643,5.62582507,3310.4,3310.1,0.43829598]
[1722441506870,6.79047558,3310.4,3310.1,0.43829598]
[1722441507171,3.02087,3310.3,3310.2,0.33308552]
[1722441507474,3.76969558,3310.4,3310.2,0.33308552]
[1722441507682,3.02087,3310.3,3310.2,0.33308552]
[1722441508086,3.76969558,3310.4,3310.2,0.33308552]
[1722441508087,5.62582507,3310.4,3310.2,0.33308552]
[1722441508381,2.60504507,3310.4,3310.2,0.33308552]
[1722441508559,5.62578507,3310.5,3310.2,0.33308552]
[1722441509080,5.62633038,3310.5,3310.2,0.33308552]
[1722441509293,2.60559038,3310.4,3310.2,0.33308552]
[1722441510188,5.60559038,3310.6,3310.2,3.35404552]
[1722441510336,2.60559038,3310.4,3310.2,0.33308552]
[1722441510758,2.60559038,3310.5,3310.2,0.33308552]
[1722441510965,2.60559038,3310.4,3310.2,0.33308552]
[1722441511145,2.60559038,3310.5,3310.2,0.33308552]
[1722441512081,3.0,3310.6,3310.2,0.33308552]
[1722441512254,2.60709824,3310.4,3310.3,0.03690176]
[1722441512579,2.60709824,3310.4,3310.2,0.33308552]
[1722441512580,2.60709824,3310.5,3310.2,3.35396552]
[1722441512937,2.60709824,3310.6,3310.2,0.33308552]
[1722441513131,5.60709824,3310.5,3310.2,0.33308552]
[1722441513362,2.60709824,3310.5,3310.2,0.33308552]
[1722441514087,2.60709824,3310.4,3310.2,0.33308552]
[1722441514579,2.60709824,3310.5,3310.4,0.2]
[1722441514779,3.0,3310.5,3310.4,0.2]
[1722441515651,6.02069,3310.5,3310.4,0.2]
[1722441515847,10.36415384,3310.5,3310.4,0.2]
[1722441516355,3.0,3310.5,3310.4,0.2]
[1722441516683,3.1266644,3310.7,3310.4,0.2]
[1722441516684,6.02061,3310.6,3310.4,0.2]
[1722441516893,3.0,3310.6,3310.4,0.2]
[1722441518137,2.3055893,3310.5,3310.4,0.2]
[1722441518604,3.0,3310.7,3310.4,0.4]
[1722441518972,3.1493957,3310.8,3310.4,0.4]
[1722441519298,3.1493957,3310.8,3310.5,0.03681549]
[1722441520464,3.02056,3310.7,3310.5,0.03681549]
[1722441520679,3.1493957,3310.8,3310.4,0.4]
[1722441520680,3.0206,3310.6,3310.4,0.4]
[1722441521256,9.2964801,3310.8,3310.5,0.33308552]
[1722441521461,3.1493957,3310.8,3310.5,0.33308552]
[1722441521703,6.1698257,3310.8,3310.5,0.33308552]
[1722441522074,2.60681015,3310.6,3310.5,0.33308552]
[1722441522410,2.60681015,3310.6,3310.4,0.4]
[1722441522756,2.60681015,3310.5,3310.4,0.6]
[1722441524164,3.02062,3310.6,3310.4,0.6]
[1722441525412,2.60680897,3310.5,3310.4,0.6]
[1722441525576,5.62749897,3310.5,3310.4,0.6]
[1722441525778,6.1472344,3310.7,3310.4,0.6]
[1722441525993,2.1266644,3310.7,3310.4,0.6]
[1722441526161,2.60684332,3310.5,3310.4,0.6]
[1722441526357,2.60669705,3310.5,3310.4,0.6]
[1722441526713,6.1698657,3310.8,3310.4,0.63677721]
[1722441526908,2.60671277,3310.5,3310.4,0.83677721]
[1722441528203,3.02052,3310.7,3310.4,0.83677721]
[1722441528373,3.0206,3310.6,3310.4,0.83677721]
[1722441528793,2.60714316,3310.5,3310.4,0.83677721]
[1722441529385,6.2779455,3310.8,3310.4,0.83677721]
[1722441529703,7.43246265,3310.8,3310.4,0.83677721]
[1722441529865,2.60709139,3310.5,3310.4,0.83677721]
[1722441530609,3.02064,3310.6,3310.4,0.83677721]
[1722441531132,3.02051,3310.7,3310.4,1.03677721]
[1722441531303,2.60687977,3310.5,3310.4,1.03677721]
[1722441531504,3.02063,3310.6,3310.4,1.03677721]
[1722441531707,3.02069,3310.5,3310.4,1.03677721]
[1722441531932,6.1492398,3310.5,3310.4,1.03677721]
[1722441532392,2.71789,3310.5,3310.4,1.03677721]
[1722441534602,3.1285498,3310.6,3310.4,1.03677721]
[1722441534830,3.02065,3310.6,3310.4,1.03677721]
[1722441535006,6.1491998,3310.6,3310.4,1.03677721]